lending/lending_fUSD_20250409
["ID","MTS","AMOUNT","RATE_DAILY","PERIOD"]
[357609205,1744235482695,-500.0,0.0003863,2]
[357609206,1744235482705,-922.766495,0.0003863,2]
[357609207,1744235482715,-151.0,0.0003863,14]
[357609208,1744235482726,-151.0,0.0003863,14]
[357609209,1744235482735,-151.0,0.0003863,14]
[357609210,1744235482745,-541.13052557,0.0003863,2]
[357609211,1744235482754,-509.55510225,0.0003863,2]
[357609212,1744235482764,-500.0,0.0003863,2]
[357609213,1744235482773,-500.0,0.0003863,2]
[357609214,1744235482783,-500.0,0.0003863,2]
[357609215,1744235482792,-500.0,0.0003863,2]
[357609216,1744235482802,-500.0,0.0003863,2]
[357609217,1744235482811,-500.0,0.0003863,2]
[357609218,1744235482821,-500.0,0.0003863,2]
[357609219,1744235482831,-500.0,0.0003863,2]
[357609220,1744235482840,-500.0,0.0003863,2]
[357609221,1744235482849,-563.17246076,0.0003863,2]
[357609222,1744235482859,-500.0,0.0003863,2]
[357609223,1744235482868,-1481.605419,0.0003863,2]
[357609224,1744235482878,-500.0,0.0003863,2]
[357609225,1744235482887,-512.21,0.0003863,2]
[357609226,1744235482896,-500.0,0.0003863,2]
[357609227,1744235482906,-575.18,0.0003863,2]
[357609228,1744235482916,-500.0,0.0003863,2]
[357609229,1744235482925,-500.0,0.0003863,2]
[357609230,1744235482935,-232.031497,0.0003863,14]
[357609231,1744235482944,-232.031497,0.0003863,14]
[357609232,1744235482953,-232.031497,0.0003863,14]
[357609233,1744235482963,-232.031497,0.0003863,14]
[357609234,1744235482973,-500.0,0.0003863,2]
[357609235,1744235482982,-500.0,0.0003863,2]
[357609236,1744235482992,-500.0,0.0003863,2]
[357609237,1744235483002,-500.0,0.0003863,2]
[357609238,1744235483012,-232.031497,0.0003863,14]
[357609239,1744235483021,-1103.241651,0.0003863,2]
[357609240,1744235483031,-232.031497,0.0003863,14]
[357609241,1744235483040,-500.0,0.0003863,2]
[357609242,1744235483050,-165.18359861,0.0003863,2]
[357609243,1744235483059,-555.55,0.0003863,2]
[357609244,1744235483068,-716.17,0.0003863,2]
[357609245,1744235483079,-569.8,0.0003863,2]
[357609246,1744235483088,-500.0,0.0003863,2]
[357609247,1744235483098,-519.46947898,0.0003863,2]
[357609248,1744235483108,-500.0,0.0003863,2]
[357609249,1744235483118,-500.0,0.0003863,2]
[357609250,1744235483128,-500.0,0.0003863,2]
[357609251,1744235483138,-500.0,0.0003863,2]
[357609252,1744235483147,-500.0,0.0003863,2]
[357609253,1744235483157,-500.0,0.0003863,2]
[357609254,1744235483166,-500.0,0.0003863,2]
[357609255,1744235483176,-500.0,0.0003863,2]
[357609256,1744235483185,-500.0,0.0003863,2]
[357609257,1744235483195,-500.0,0.0003863,2]
[357609258,1744235483205,-500.0,0.0003863,2]
[357609259,1744235483214,-500.0,0.0003863,2]
[357609260,1744235483224,-500.0,0.0003863,2]
[357609261,1744235483233,-500.0,0.0003863,2]
[357609262,1744235483243,-500.0,0.0003863,2]
[357609263,1744235483253,-500.0,0.0003863,2]
[357609264,1744235483263,-500.0,0.0003863,2]
[357609265,1744235483273,-510.02229003,0.0003863,2]
[357609266,1744235483283,-500.0,0.0003863,2]
[357609267,1744235483292,-500.0,0.0003863,2]
[357609268,1744235483302,-500.0,0.0003863,2]
[357609269,1744235483311,-500.0,0.0003863,2]
[357609270,1744235483322,-500.0,0.0003863,2]
[357609271,1744235483332,-500.0,0.0003863,2]
[357609272,1744235483342,-500.0,0.0003863,2]
[357609273,1744235483352,-502.14862034,0.0003863,2]
[357609274,1744235483362,-500.0,0.0003863,2]
[357609275,1744235483372,-500.0,0.0003863,2]
[357609276,1744235483382,-500.0,0.0003863,2]
[357609277,1744235483392,-500.0,0.0003863,2]
[357609278,1744235483401,-277.845457,0.0003863,14]
[357609279,1744235483411,-277.845457,0.0003863,14]
[357609280,1744235483421,-277.845457,0.0003863,14]
[357609281,1744235483431,-523.55,0.0003863,2]
[357609282,1744235483443,-500.0,0.0003863,2]
[357609283,1744235483453,-277.845457,0.0003863,14]
[357609284,1744235483463,-277.845457,0.0003863,14]
[357609285,1744235483472,-277.845457,0.0003863,14]
[357609286,1744235483483,-500.0,0.0003863,2]
[357609287,1744235483492,-500.0,0.0003863,2]
[357609288,1744235483502,-500.0,0.0003863,2]
[357609289,1744235483511,-573.71742478,0.0003863,2]
[357609290,1744235483521,-590.51575378,0.0003863,2]
[357609291,1744235483532,-500.0,0.0003863,2]
[357609292,1744235483542,-520.52111662,0.0003863,2]
[357609293,1744235483551,-500.0,0.0003863,2]
[357609294,1744235483561,-641.56,0.0003863,2]
[357609295,1744235483570,-522.12,0.0003863,2]
[357609296,1744235483580,-671.33,0.0003863,2]
[357609297,1744235483590,-500.0,0.0003863,2]
[357609298,1744235483600,-500.0,0.0003863,2]
[357609299,1744235483610,-898.3,0.0003863,2]
[357609300,1744235483619,-500.0,0.0003863,2]
[357609301,1744235483630,-565.26694945,0.0003863,2]
[357609302,1744235483640,-500.0,0.0003863,2]
[357609303,1744235483649,-500.0,0.0003863,2]
[357609304,1744235483659,-500.0,0.0003863,2]
[357609305,1744235483669,-512.80749923,0.0003863,2]
[357609306,1744235483678,-500.0,0.0003863,2]
[357609307,1744235483688,-500.0,0.0003863,2]
[357609308,1744235483697,-506.96246599,0.0003863,2]
[357609309,1744235483707,-500.0,0.0003863,2]
[357609310,1744235483716,-500.0,0.0003863,2]
[357609311,1744235483725,-177.806214,0.0003863,14]
[357609312,1744235483735,-500.0,0.0003863,2]
[357609313,1744235483745,-177.806214,0.0003863,14]
[357609314,1744235483755,-509.2902917,0.0003863,2]
[357609315,1744235483764,-500.0,0.0003863,2]
[357609316,1744235483774,-156.788597,0.0003863,2]
[357609317,1744235483783,-1488.11,0.0003863,2]
[357609318,1744235483793,-1000.0,0.0003863,2]
[357609319,1744235483802,-500.0,0.0003863,2]
[357609320,1744235483812,-500.0,0.0003863,2]
[357609321,1744235483821,-500.0,0.0003863,2]
[357609322,1744235483831,-500.0,0.0003863,2]
[357609323,1744235483841,-246.65979612,0.0003863,2]
[357609324,1744235483851,-500.0,0.0003863,2]
[357609325,1744235483860,-500.0,0.0003863,2]
[357609326,1744235483870,-500.0,0.0003863,2]
[357609327,1744235483880,-1346.88,0.0003863,2]
[357609328,1744235483889,-500.0,0.0003863,2]
[357609329,1744235483899,-503.55498754,0.0003863,2]
[357609330,1744235483908,-500.0,0.0003863,2]
[357609331,1744235483918,-600.91,0.0003863,2]
[357609332,1744235483927,-500.0,0.0003863,2]
[357609333,1744235483936,-538.49865891,0.0003863,2]
[357609334,1744235483946,-500.0,0.0003863,2]
[357609335,1744235483955,-531.67321752,0.0003863,2]
[357609336,1744235483965,-500.0,0.0003863,2]
[357609337,1744235483975,-500.0,0.0003863,2]
[357609338,1744235483985,-500.0,0.0003863,2]
[357609339,1744235483994,-500.0,0.0003863,2]
[357609340,1744235484004,-1062.56,0.0003863,2]
[357609341,1744235484014,-1109.78,0.0003863,2]
[357609342,1744235484024,-1328.67,0.0003863,2]
[357609343,1744235484035,-519.26137628,0.0003863,2]
[357609344,1744235484045,-1098.1,0.0003863,2]
[357609345,1744235484055,-500.0,0.0003863,2]
[357609346,1744235484064,-500.0,0.0003863,2]
[357609347,1744235484074,-500.0,0.0003863,2]
[357609348,1744235484084,-601.54,0.0003863,2]
[357609349,1744235484094,-500.0,0.0003863,2]
[357609350,1744235484381,-504.39920617,0.0003863,2]
[357609351,1744235484391,-500.0,0.0003863,2]
[357609352,1744235484401,-500.0,0.0003863,2]
[357609353,1744235484411,-492.91291467,0.0003863,2]
[357609354,1744235484421,-500.0,0.0003863,2]
[357609355,1744235484432,-2058.98,0.0003863,2]
[357609356,1744235484444,-500.0,0.0003863,2]
[357609357,1744235484454,-500.0,0.0003863,2]
[357609358,1744235484463,-500.0,0.0003863,2]
[357609359,1744235484473,-704.15,0.0003863,2]
[357609360,1744235484483,-501.57091597,0.0003863,2]
[357609361,1744235484492,-500.0,0.0003863,2]
[357609362,1744235484503,-500.0,0.0003863,2]
[357609363,1744235484512,-500.0,0.0003863,2]
[357609364,1744235484525,-500.0,0.0003863,2]
[357609365,1744235484535,-517.9361172,0.0003863,2]
[357609366,1744235484544,-500.0,0.0003863,2]
[357609367,1744235484553,-500.0,0.0003863,2]
[357609368,1744235484563,-500.0,0.0003863,2]
[357609369,1744235484572,-500.0,0.0003863,2]
[357609370,1744235484584,-1533.75,0.0003863,2]
[357609371,1744235484593,-890.15,0.0003863,2]
[357609372,1744235484603,-543.58022643,0.0003863,2]
[357609373,1744235484613,-500.0,0.0003863,2]
[357609374,1744235484622,-2033.59,0.0003863,2]
[357609375,1744235484632,-502.95658298,0.0003863,2]
[357609376,1744235484643,-500.0,0.0003863,2]
[357609377,1744235484653,-628.38314665,0.0003863,2]
[357609378,1744235484663,-1091.45,0.0003863,2]
[357609379,1744235484673,-500.0,0.0003863,2]
[357609380,1744235484683,-998.38,0.0003863,2]
[357609381,1744235484692,-526.88812224,0.0003863,2]
[357609382,1744235484702,-500.0,0.0003863,2]
[357609383,1744235484712,-500.0,0.0003863,2]
[357609384,1744235484721,-531.08699972,0.0003863,2]
[357609385,1744235484731,-500.0,0.0003863,2]
[357609386,1744235484741,-500.0,0.0003863,2]
[357609387,1744235484750,-990.73,0.0003863,2]
[357609388,1744235484761,-1255.28,0.0003863,2]
[357609389,1744235484771,-740.02,0.0003863,2]
[357609390,1744235484780,-500.0,0.0003863,2]
[357609391,1744235484790,-500.0,0.0003863,2]
[357609392,1744235484800,-500.0,0.0003863,2]
[357609393,1744235484810,-574.1324759,0.0003863,2]
[357609394,1744235484819,-500.0,0.0003863,2]
[357609395,1744235484829,-840.51,0.0003863,2]
[357609396,1744235484839,-500.0,0.0003863,2]
[357609397,1744235484849,-628.73,0.0003863,2]
[357609398,1744235484859,-500.0,0.0003863,2]
[357609399,1744235484869,-500.0,0.0003863,2]
[357609400,1744235484879,-531.31027916,0.0003863,2]
[357609401,1744235484891,-851.89,0.0003863,2]
[357609402,1744235484902,-1122.08,0.0003863,2]
[357609403,1744235484918,-504.36222527,0.0003863,2]
[357609404,1744235484928,-500.0,0.0003863,2]
[357609405,1744235484939,-545.87421463,0.0003863,2]
[357609406,1744235484949,-500.0,0.0003863,2]
[357609407,1744235484960,-500.0,0.0003863,2]
[357609408,1744235484970,-1594.69,0.0003863,2]
[357609409,1744235484980,-399.46818282,0.0003863,2]
[357609410,1744235484991,-846.31,0.0003863,2]
[357609411,1744235485002,-500.0,0.0003863,2]
[357609412,1744235485012,-500.0,0.0003863,2]
[357609413,1744235485023,-500.0,0.0003863,2]
[357609414,1744235485034,-500.0,0.0003863,2]
[357609415,1744235485044,-500.0,0.0003863,2]
[357609416,1744235485054,-634.01,0.0003863,2]
[357609417,1744235485065,-522.07268317,0.0003863,2]
[357609418,1744235485075,-500.0,0.0003863,2]
[357609419,1744235485086,-500.0,0.0003863,2]
[357609420,1744235485096,-500.0,0.0003863,2]
[357609421,1744235485108,-1789.24,0.0003863,2]
[357609422,1744235485119,-501.16553126,0.0003863,2]
[357609423,1744235485129,-500.0,0.0003863,2]
[357609424,1744235485139,-500.0,0.0003863,2]
[357609425,1744235485150,-500.0,0.0003863,2]
[357609426,1744235485161,-500.0,0.0003863,2]
[357609427,1744235485172,-500.0,0.0003863,2]
[357609428,1744235485183,-2100.49,0.0003863,2]
[357609429,1744235485194,-1008.97,0.0003863,2]
[357609430,1744235485204,-500.0,0.0003863,2]
[357609431,1744235485214,-904.2,0.0003863,2]
[357609432,1744235485225,-518.14317267,0.0003863,2]
[357609433,1744235485235,-575.38,0.0003863,2]
[357609434,1744235485246,-462.11036092,0.0003863,2]
[357609435,1744235485256,-616.294201,0.0003863,14]
[357609436,1744235485266,-616.294201,0.0003863,14]
[357609437,1744235485276,-980.91,0.0003863,2]
[357609438,1744235485287,-500.0,0.0003863,2]
[357609439,1744235485298,-744.07,0.0003863,2]
[357609440,1744235485308,-500.0,0.0003863,2]
[357609441,1744235485318,-500.0,0.0003863,2]
[357609442,1744235485328,-500.0,0.0003863,2]
[357609443,1744235485338,-616.294201,0.0003863,14]
[357609444,1744235485349,-616.294201,0.0003863,14]
[357609445,1744235485359,-500.0,0.0003863,2]
[357609446,1744235485369,-1364.94,0.0003863,2]
[357609447,1744235485379,-163.127945,0.0003863,14]
[357609448,1744235485389,-500.0,0.0003863,2]
[357609449,1744235485400,-163.127945,0.0003863,14]
[357609450,1744235485410,-500.0,0.0003863,2]
[357609451,1744235485420,-500.0,0.0003863,2]
[357609452,1744235485430,-163.127945,0.0003863,14]
[357609453,1744235485442,-163.127945,0.0003863,14]
[357609454,1744235485452,-500.0,0.0003863,2]
[357609455,1744235485462,-500.0,0.0003863,2]
[357609456,1744235485473,-500.0,0.0003863,2]
[357609457,1744235485483,-500.0,0.0003863,2]
[357609458,1744235485494,-500.0,0.0003863,2]
[357609459,1744235485504,-500.0,0.0003863,2]
[357609460,1744235485515,-500.0,0.0003863,2]
[357609461,1744235485526,-747.87,0.0003863,2]
[357609462,1744235485536,-500.0,0.0003863,2]
[357609463,1744235485546,-500.0,0.0003863,2]
[357609464,1744235485556,-500.0,0.0003863,2]
[357609465,1744235485566,-850.11,0.0003863,2]
[357609466,1744235485576,-580.37184105,0.0003863,2]
[357609467,1744235485586,-1247.64,0.0003863,2]
[357609468,1744235485596,-1102.32,0.0003863,2]
[357609469,1744235485606,-500.0,0.0003863,2]
[357609470,1744235485616,-500.0,0.0003863,2]
[357609471,1744235485626,-659.47,0.0003863,2]
[357609472,1744235485635,-500.0,0.0003863,2]
[357609473,1744235485645,-588.76,0.0003863,2]
[357609474,1744235485655,-500.0,0.0003863,2]
[357609475,1744235485665,-500.0,0.0003863,2]
[357609476,1744235485675,-500.0,0.0003863,2]
[357609477,1744235485685,-626.4,0.0003863,2]
[357609478,1744235485695,-500.0,0.0003863,2]
[357609479,1744235485704,-151.0,0.0003863,14]
[357609480,1744235485714,-151.0,0.0003863,14]
[357609481,1744235485724,-151.0,0.0003863,14]
[357609482,1744235485734,-500.0,0.0003863,2]
[357609483,1744235485744,-500.0,0.0003863,2]
[357609484,1744235485754,-500.0,0.0003863,2]
[357609485,1744235485764,-500.0,0.0003863,2]
[357609486,1744235485774,-500.0,0.0003863,2]
[357609487,1744235485784,-992.17,0.0003863,2]
[357609488,1744235485794,-500.0,0.0003863,2]
[357609489,1744235485805,-500.0,0.0003863,2]
[357609490,1744235485815,-500.0,0.0003863,2]
[357609491,1744235485825,-522.66437211,0.0003863,2]
[357609492,1744235485835,-500.0,0.0003863,2]
[357609493,1744235485845,-500.0,0.0003863,2]
[357609494,1744235485855,-500.0,0.0003863,2]
[357609495,1744235485864,-500.0,0.0003863,2]
[357609496,1744235485874,-863.74,0.0003863,2]
[357609497,1744235485883,-669.2,0.0003863,2]
[357609498,1744235485893,-180.31254301,0.0003863,2]
[357609499,1744235485903,-500.0,0.0003863,2]
[357609500,1744235485913,-500.2,0.0003863,2]
[357609501,1744235485923,-500.0,0.0003863,2]
[357609502,1744235485932,-502.34792963,0.0003863,2]
[357609503,1744235485942,-500.0,0.0003863,2]
[357609504,1744235485951,-500.0,0.0003863,2]
[357609505,1744235485962,-500.0,0.0003863,2]
[357609506,1744235485972,-623.22,0.0003863,2]
[357609507,1744235485982,-987.07,0.0003863,2]
[357609508,1744235485992,-500.0,0.0003863,2]
[357609509,1744235486002,-500.0,0.0003863,2]
[357609510,1744235486012,-500.0,0.0003863,2]
[357609511,1744235486023,-500.0,0.0003863,2]
[357609512,1744235486032,-500.0,0.0003863,2]
[357609513,1744235486042,-500.0,0.0003863,2]
[357609514,1744235486052,-499.47698316,0.0003863,2]
[357609515,1744235486062,-500.0,0.0003863,2]
[357609516,1744235486072,-500.0,0.0003863,2]
[357609517,1744235486082,-500.0,0.0003863,2]
[357609518,1744235486092,-663.93,0.0003863,2]
[357609519,1744235486102,-503.44190076,0.0003863,2]
[357609520,1744235486112,-500.0,0.0003863,2]
[357609521,1744235486121,-500.0,0.0003863,2]
[357609522,1744235486131,-1150.41,0.0003863,2]
[357609523,1744235486140,-500.0,0.0003863,2]
[357609524,1744235486150,-500.0,0.0003863,2]
[357609525,1744235486160,-500.0,0.0003863,2]
[357609526,1744235486170,-950.19,0.0003863,2]
[357609527,1744235486180,-500.0,0.0003863,2]
[357609528,1744235486190,-222.56300373,0.0003863,2]
[357609529,1744235486200,-2733.502155,0.0003863,14]
[357609530,1744235486209,-700.43,0.0003863,2]
[357609531,1744235486219,-2733.502155,0.0003863,14]
[357609532,1744235486229,-2733.502155,0.0003863,14]
[357609533,1744235486238,-1644.09,0.0003863,2]
[357609534,1744235486248,-279.21413891,0.0003863,2]
[357609535,1744235486258,-500.0,0.0003863,2]
[357609536,1744235486268,-2733.502155,0.0003863,14]
[357609537,1744235486278,-2733.502155,0.0003863,14]
[357609538,1744235486288,-2733.502155,0.0003863,14]
[357609539,1744235486298,-500.0,0.0003863,2]
[357609540,1744235486307,-1196.11,0.0003863,2]
[357609541,1744235486317,-533.1,0.0003863,2]
[357609542,1744235486328,-410.729687,0.0003863,14]
[357609543,1744235486337,-410.729687,0.0003863,14]
[357609544,1744235486347,-410.729687,0.0003863,14]
[357609545,1744235486356,-500.0,0.0003863,2]
[357609546,1744235486366,-500.0,0.0003863,2]
[357609547,1744235486376,-500.0,0.0003863,2]
[357609548,1744235486386,-500.0,0.0003863,2]
[357609549,1744235486396,-500.0,0.0003863,2]
[357609550,1744235486406,-500.0,0.0003863,2]
[357609551,1744235486416,-500.0,0.0003863,2]
[357609552,1744235486425,-500.0,0.0003863,2]
[357609553,1744235486435,-500.0,0.0003863,2]
[357609554,1744235486450,-509.54,0.0003863,2]
[357609555,1744235486459,-500.0,0.0003863,2]
[357609556,1744235486469,-500.0,0.0003863,2]
[357609557,1744235486480,-605.75,0.0003863,2]
[357609558,1744235486491,-872.19,0.0003863,2]
[357609559,1744235486500,-500.0,0.0003863,2]
[357609560,1744235486510,-151.0,0.0003863,14]
[357609561,1744235486521,-500.0,0.0003863,2]
[357609562,1744235486531,-151.0,0.0003863,14]
[357609563,1744235486542,-2888.05,0.0003863,2]
[357609564,1744235486552,-500.0,0.0003863,2]
[357609565,1744235486561,-530.54796716,0.0003863,2]
[357609566,1744235486571,-1530.18,0.0003863,2]
[357609567,1744235486582,-500.0,0.0003863,2]
[357609568,1744235486592,-500.0,0.0003863,2]
[357609569,1744235486602,-500.0,0.0003863,2]
[357609570,1744235486611,-538.29,0.0003863,2]
[357609571,1744235486621,-500.0,0.0003863,2]
[357609572,1744235486631,-502.54403231,0.0003863,2]
[357609573,1744235486641,-500.0,0.0003863,2]
[357609574,1744235486651,-500.0,0.0003863,2]
[357609575,1744235486660,-1392.95,0.0003863,2]
[357609576,1744235486670,-501.02471876,0.0003863,2]
[357609577,1744235486680,-500.0,0.0003863,2]
[357609578,1744235486690,-500.0,0.0003863,2]
[357609579,1744235486700,-760.73,0.0003863,2]
[357609580,1744235486710,-529.21,0.0003863,2]
[357609581,1744235486719,-500.0,0.0003863,2]
[357609582,1744235486729,-500.0,0.0003863,2]
[357609583,1744235486739,-511.56512765,0.0003863,2]
[357609584,1744235486748,-1014.21,0.0003863,2]
[357609585,1744235486758,-500.0,0.0003863,2]
[357609586,1744235486867,-728.15,0.0003863,2]
[357609587,1744235486877,-671.68,0.0003863,2]
[357609588,1744235486886,-500.0,0.0003863,2]
[357609589,1744235486896,-500.0,0.0003863,2]
[357609590,1744235486905,-217.02953859,0.0003863,2]
[357609591,1744235486915,-582.4,0.0003863,2]
[357609592,1744235486925,-500.0,0.0003863,2]
[357609593,1744235486934,-535.98928733,0.0003863,2]
[357609594,1744235486943,-500.0,0.0003863,2]
[357609595,1744235486952,-600.66,0.0003863,2]
[357609596,1744235486962,-500.0,0.0003863,2]
[357609597,1744235486971,-500.0,0.0003863,2]
[357609598,1744235486980,-500.0,0.0003863,2]
[357609599,1744235486989,-905.89,0.0003863,2]
[357609600,1744235486999,-500.0,0.0003863,2]
[357609601,1744235487008,-640.01,0.0003863,120]
[357609602,1744235487017,-500.0,0.0003863,2]
[357609603,1744235487027,-408.69231856,0.0003863,2]
[357609604,1744235487036,-500.0,0.0003863,2]
[357609605,1744235487045,-500.0,0.0003863,2]
[357609606,1744235487055,-500.0,0.0003863,2]
[357609607,1744235487064,-500.0,0.0003863,2]
[357609608,1744235487073,-478.76,0.0003863,2]
[357609609,1744235487083,-600.12,0.0003863,2]
[357609610,1744235487092,-500.0,0.0003863,2]
[357609611,1744235487102,-500.0,0.0003863,2]
[357609612,1744235487111,-500.0,0.0003863,2]
[357609613,1744235487121,-536.84671727,0.0003863,2]
[357609614,1744235487130,-500.0,0.0003863,2]
[357609615,1744235487139,-500.0,0.0003863,2]
[357609616,1744235487149,-500.0,0.0003863,2]
[357609617,1744235487158,-500.0,0.0003863,2]
[357609618,1744235487167,-621.38,0.0003863,2]
[357609619,1744235487177,-574.51,0.0003863,2]
[357609620,1744235487186,-696.24,0.0003863,2]
[357609621,1744235487195,-500.0,0.0003863,2]
[357609622,1744235487204,-541.41499735,0.0003863,2]
[357609623,1744235487214,-500.0,0.0003863,2]
[357609624,1744235487223,-534.70091494,0.0003863,2]
[357609625,1744235487232,-184.74670732,0.0003863,2]
[357609626,1744235487241,-736.46,0.0003863,2]
[357609627,1744235487250,-500.0,0.0003863,2]
[357609628,1744235487259,-564.04,0.0003863,2]
[357609629,1744235487268,-500.0,0.0003863,2]
[357609630,1744235487278,-500.0,0.0003863,2]
[357609631,1744235487287,-500.0,0.0003863,2]
[357609632,1744235487296,-500.0,0.0003863,2]
[357609633,1744235487306,-662.39,0.0003863,2]
[357609634,1744235487316,-172.05839316,0.0003863,2]
[357609635,1744235487325,-500.0,0.0003863,2]
[357609636,1744235487335,-1138.96,0.0003863,2]
[357609637,1744235487345,-536.10865107,0.0003863,2]
[357609638,1744235487355,-500.0,0.0003863,2]
[357609639,1744235487364,-525.3386741,0.0003863,2]
[357609640,1744235487373,-500.0,0.0003863,2]
[357609641,1744235487383,-506.09,0.0003863,2]
[357609642,1744235487392,-500.0,0.0003863,2]
[357609643,1744235487401,-151.0,0.0003863,14]
[357609644,1744235487411,-502.41830259,0.0003863,2]
[357609645,1744235487420,-510.62227836,0.0003863,2]
[357609646,1744235487430,-151.0,0.0003863,14]
[357609647,1744235487442,-500.0,0.0003863,2]
[357609648,1744235487451,-203.198307,0.0003863,14]
[357609649,1744235487461,-557.52,0.0003863,2]
[357609650,1744235487470,-593.38,0.0003863,2]
[357609651,1744235487479,-203.198307,0.0003863,14]
[357609652,1744235487490,-500.0,0.0003863,2]
[357609653,1744235487499,-203.198307,0.0003863,14]
[357609654,1744235487508,-978.21,0.0003863,2]
[357609655,1744235487517,-500.0,0.0003863,2]
[357609656,1744235487527,-500.0,0.0003863,2]
[357609657,1744235487536,-203.198307,0.0003863,14]
[357609658,1744235487545,-332.9726026,0.0003863,2]
[357609659,1744235487555,-203.198307,0.0003863,14]
[357609660,1744235487564,-203.198307,0.0003863,14]
[357609661,1744235487573,-500.0,0.0003863,2]
[357609662,1744235487583,-500.0,0.0003863,2]
[357609663,1744235487593,-500.0,0.0003863,2]
[357609664,1744235487602,-879.62,0.0003863,2]
[357609665,1744235487611,-509.54856491,0.0003863,2]
[357609666,1744235487621,-500.0,0.0003863,2]
[357609667,1744235487630,-915.14,0.0003863,2]
[357609668,1744235487640,-500.0,0.0003863,2]
[357609669,1744235487650,-972.17,0.0003863,2]
[357609670,1744235487659,-500.0,0.0003863,2]
[357609671,1744235487668,-500.0,0.0003863,2]
[357609672,1744235487677,-415.326059,0.0003863,14]
[357609673,1744235487686,-415.326059,0.0003863,14]
[357609674,1744235487696,-500.0,0.0003863,2]
[357609675,1744235487704,-415.326059,0.0003863,14]
[357609676,1744235487714,-500.0,0.0003863,2]
[357609677,1744235487723,-500.0,0.0003863,2]
[357609678,1744235487733,-500.0,0.0003863,2]
[357609679,1744235487742,-689.1,0.0003863,2]
[357609680,1744235487751,-554.20693179,0.0003863,2]
[357609681,1744235487761,-500.0,0.0003863,2]
[357609682,1744235487770,-693.42,0.0003863,2]
[357609683,1744235487779,-265.360149,0.0003863,14]
[357609684,1744235487789,-415.326059,0.0003863,14]
[357609685,1744235487798,-265.360149,0.0003863,14]
[357609686,1744235487807,-415.326059,0.0003863,14]
[357609687,1744235487817,-415.326059,0.0003863,14]
[357609688,1744235487826,-500.0,0.0003863,2]
[357609689,1744235487836,-500.0,0.0003863,2]
[357609690,1744235487845,-500.0,0.0003863,2]
[357609691,1744235487855,-500.0,0.0003863,2]
[357609692,1744235487864,-168.15714818,0.0003863,2]
[357609693,1744235487873,-265.360149,0.0003863,14]
[357609694,1744235487883,-265.360149,0.0003863,14]
[357609695,1744235487893,-500.0,0.0003863,2]
[357609696,1744235487902,-500.0,0.0003863,2]
[357609697,1744235487911,-500.0,0.0003863,2]
[357609698,1744235487921,-1204.18,0.0003863,2]
[357609699,1744235487930,-500.0,0.0003863,2]
[357609700,1744235487940,-500.0,0.0003863,2]
[357609701,1744235487950,-2109.43,0.0003863,2]
[357609702,1744235487959,-500.0,0.0003863,2]
[357609703,1744235487968,-922.86,0.0003863,2]
[357609704,1744235487978,-500.0,0.0003863,2]